bitfinex/quotes_SOLUSD_20250525
["timestamp","ask_amount","ask_price","bid_price","bid_amount"]
[1748215264175,30.87623286,173.89,173.88,36.98]
[1748215264679,34.61250288,173.89,173.88,36.98]
[1748215264975,37.48788386,173.89,173.78,82.68]
[1748215265270,18.15858733,173.84,173.8,36.98]
[1748215265648,5.13855415,173.83,173.8,36.98]
[1748215266774,1.15054938,173.83,173.8,36.98]
[1748215267274,19.30913671,173.83,173.8,36.98]
[1748215268555,18.15858733,173.83,173.8,36.98]
[1748215268858,18.15858733,173.84,173.8,36.98]
[1748215269047,28.46152319,173.85,173.8,36.98]
[1748215269451,25.39968166,173.84,173.8,36.98]
[1748215269849,7.24109433,173.84,173.8,39.85672325]
[1748215270069,3.2826219,173.84,173.8,39.85672325]
[1748215270289,21.44120923,173.84,173.8,36.98]
[1748215270452,18.15858733,173.82,173.8,36.98]
[1748215270872,1.15068177,173.81,173.8,36.98]
[1748215271077,19.3092691,173.81,173.78,82.68]
[1748215271459,1.15068177,173.81,173.78,82.68]
[1748215274594,19.3092691,173.81,173.78,82.68]
[1748215275099,19.78578733,173.82,173.78,117.16]
[1748215275297,1.6272,173.82,173.78,117.16]
[1748215275981,2.77781685,173.82,173.78,117.16]
[1748215277904,20.93640418,173.82,173.78,117.16]
[1748215281695,18.15858733,173.81,173.78,117.16]
[1748215282090,18.15858733,173.8,173.76,71.46]
[1748215282885,18.15858733,173.79,173.76,71.46]
[1748215283870,1.15088042,173.78,173.76,71.46]
[1748215284070,1.15088042,173.78,173.76,36.98]
[1748215284298,26.0,173.76,173.71,71.46]
[1748215284470,4.02808147,173.78,173.71,36.98]
[1748215284674,28.13433283,173.78,173.71,36.98]
[1748215284884,20.29292016,173.78,173.72,34.48]
[1748215285074,2.13433283,173.78,173.72,34.48]
[1748215285482,20.29292016,173.78,173.72,34.48]
[1748215286001,18.15858733,173.78,173.72,34.48]
[1748215286804,18.15858733,173.78,173.73,2.87802912]
[1748215287606,21.43703776,173.79,173.73,2.87802912]
[1748215287901,18.15858733,173.79,173.73,2.87802912]
[1748215288974,21.43703776,173.8,173.73,2.87802912]
[1748215289197,18.15858733,173.8,173.73,2.87802912]
[1748215289887,18.15858733,173.79,173.73,2.87802912]
[1748215290199,18.15858733,173.8,173.73,2.87802912]
[1748215291678,3.27845043,173.81,173.74,44.79181043]
[1748215291882,3.27845043,173.81,173.78,18.79181043]
[1748215292080,3.27845043,173.81,173.8,18.79181043]
[1748215292687,4.09424633,173.84,173.8,18.79181043]
[1748215293010,4.09424633,173.84,173.8,2.30149597]
[1748215294011,18.15858733,173.86,173.8,2.30149597]
[1748215294186,20.94910931,173.87,173.8,2.30149597]
[1748215294691,1.6402,173.87,173.8,8.0552359]
[1748215294892,24.33227792,173.88,173.8,26.70488476]
[1748215295107,18.15858733,173.87,173.8,26.70488476]
[1748215295288,24.33227792,173.88,173.8,26.70488476]
[1748215296111,3.27845043,173.88,173.81,18.79181043]
[1748215296294,21.43703776,173.88,173.81,18.79181043]
[1748215296493,18.15858733,173.88,173.81,18.79181043]
[1748215297009,22.42687612,173.89,173.82,8.05430904]
[1748215297313,4.26828879,173.89,173.82,8.05430904]
[1748215297497,21.4376835,173.9,173.82,8.05430904]
[1748215298313,3.27909617,173.9,173.83,18.79181043]
[1748215298509,3.27909617,173.9,173.84,34.48]
[1748215298822,1.508,173.91,173.85,36.98]
[1748215299002,19.66658733,173.91,173.85,36.98]
[1748215299403,19.66658733,173.91,173.86,2.30070171]
[1748215299912,18.15858733,173.9,173.86,2.30070171]
[1748215302313,18.15858733,173.89,173.85,36.98]
[1748215302488,18.15858733,173.89,173.85,39.28081439]
[1748215302923,3.28021595,173.9,173.85,36.98]
[1748215302924,18.15858733,173.87,173.85,36.98]
[1748215304612,18.15858733,173.88,173.85,36.98]
[1748215306017,18.15858733,173.89,173.85,39.28081625]
[1748215306199,18.15858733,173.9,173.85,39.28081625]
[1748215306400,1.508,173.91,173.85,73.76081625]
[1748215306620,1.508,173.91,173.85,155.26081625]
[1748215306928,5.44234961,173.91,173.85,161.01290138]
[1748215307999,1.508,173.91,173.85,161.01290138]
[1748215308199,4.7923569,173.91,173.85,161.01290138]
[1748215308404,3.2843569,173.91,173.85,161.01290138]
[1748215309821,18.15858733,173.92,173.85,161.01290138]
[1748215312134,21.44077141,173.92,173.85,161.01290138]
[1748215313728,3.28218408,173.92,173.86,20.42121043]
[1748215314606,3.28218408,173.92,173.87,2.30056939]
[1748215315312,18.15858733,173.93,173.87,2.30056939]
[1748215319030,19.30847906,173.93,173.87,2.30056939]
[1748215319417,19.30847906,173.93,173.87,83.80056939]
[1748215319816,18.15858733,173.93,173.87,83.80056939]
[1748215321631,18.15858733,173.92,173.88,34.46]
[1748215323026,19.30856953,173.92,173.88,34.46]
[1748215325338,1.1499822,173.92,173.88,34.46]
[1748215325542,19.30850132,173.93,173.88,34.46]
[1748215326044,3.27704492,173.94,173.88,36.76042388]
[1748215326336,21.43563225,173.94,173.88,36.76042388]
[1748215326520,18.15858733,173.94,173.88,36.76042388]
[1748215326721,18.15858733,173.94,173.89,36.94]
[1748215326921,19.75578733,173.95,173.89,36.94]
[1748215327220,1.14984235,173.94,173.89,39.24028696]
[1748215327535,18.15858733,173.93,173.89,36.94]
[1748215328219,19.30842968,173.94,173.89,36.94]
[1748215329140,19.3084868,173.93,173.89,36.94]
[1748215329640,19.30842904,173.94,173.89,36.94]
[1748215330664,18.15858733,173.92,173.89,36.94]
[1748215331144,18.15858733,173.9,173.84,36.94]
[1748215331311,7.4992073,173.93,173.84,39.24091842]
[1748215331515,3.27704492,173.92,173.85,18.79181043]
[1748215332629,18.15858733,173.92,173.85,18.79181043]
[1748215333164,18.15858733,173.92,173.84,36.94]
[1748215333165,18.15858733,173.9,173.84,36.94]
[1748215333323,18.15858733,173.9,173.86,34.46]
[1748215334465,18.15858733,173.89,173.86,34.46]
[1748215334965,30.02487274,173.92,173.86,34.46]
[1748215334966,18.15858733,173.9,173.86,34.46]
[1748215335139,4.43842274,173.89,173.86,34.46]
[1748215335460,22.59701007,173.89,173.86,34.46]
[1748215335661,4.28581908,173.88,173.84,36.94]
[1748215335845,4.28581908,173.88,173.85,34.46]
[1748215336562,19.30875673,173.89,173.85,34.46]
[1748215337062,6.0889905,173.88,173.85,34.46]
[1748215337262,4.29018183,173.87,173.85,34.46]
[1748215338049,3.9439772,173.88,173.85,34.46]
[1748215338253,19.30876375,173.89,173.85,34.46]
[1748215338444,18.15858733,173.87,173.84,36.94]
[1748215338643,7.58856862,173.86,173.84,36.94]
[1748215339173,3.95307954,173.85,173.84,36.94]
[1748215339371,8.24551432,173.85,173.84,36.94]
[1748215339562,10.39199372,173.85,173.84,36.94]
[1748215339867,13.68812756,173.85,173.84,36.94]
[1748215340558,13.68812756,173.85,173.84,58.03277683]
[1748215341065,11.54164816,173.85,173.84,58.03277683]
[1748215341370,3.29613384,173.85,173.84,92.49277683]
[1748215341572,4.09424633,173.88,173.84,92.49277683]
[1748215342461,19.30873059,173.9,173.84,92.49277683]
[1748215343573,28.70439868,173.89,173.85,34.46]
[1748215343945,18.15858733,173.87,173.85,34.46]
[1748215344145,2.14632431,173.86,173.85,34.46]
[1748215344546,28.5512779,173.86,173.85,34.46]
[1748215345355,31.84757439,173.86,173.85,34.46]
[1748215345557,32.99792524,173.86,173.85,34.46]
[1748215346050,13.68898706,173.86,173.85,34.46]
[1748215346249,13.68898706,173.86,173.84,36.94]
[1748215346456,3.29629649,173.85,173.84,36.94]
[1748215348268,11.54305066,173.86,173.84,36.94]
[1748215348595,10.39269057,173.86,173.84,36.94]
[1748215350875,3.29530005,173.85,173.84,36.94]
[1748215351389,9.39465363,173.85,173.84,36.94]
[1748215351977,7.24832932,173.85,173.84,36.94]
[1748215352275,3.95302927,173.85,173.84,36.94]
[1748215352585,19.30886867,173.88,173.84,36.94]
[1748215353195,22.45105542,173.87,173.84,36.94]
[1748215353482,18.15858733,173.85,173.84,36.94]
[1748215353701,18.15858733,173.85,173.79,71.38]
[1748215353880,18.15858733,173.84,173.79,71.38]
[1748215354264,3.29464977,173.83,173.79,71.38]
[1748215354762,3.29464977,173.83,173.79,73.68160694]
[1748215355778,19.30902806,173.85,173.79,73.68160694]
[1748215355970,4.28963056,173.84,173.79,73.68160694]
[1748215356673,19.30902806,173.85,173.79,73.68160694]
[1748215356993,18.15858733,173.84,173.79,71.38]
[1748215357177,24.25095314,173.84,173.79,71.38]
[1748215357866,22.10672646,173.84,173.79,71.38]
[1748215358474,3.94813913,173.83,173.79,71.38]
[1748215359674,19.30911456,173.84,173.79,71.38]
[1748215359896,3.29177301,173.83,173.79,71.38]
[1748215361108,19.30911456,173.84,173.79,73.68158565]
[1748215362292,19.30911456,173.84,173.79,71.38]
[1748215362896,1.15052723,173.84,173.79,73.68161315]
[1748215363084,19.30911456,173.84,173.79,73.68161315]
[1748215363284,19.30911456,173.84,173.79,71.38]
[1748215364674,19.30911456,173.84,173.79,36.92]
[1748215365001,18.15858733,173.83,173.79,71.4]
[1748215365298,1.15061557,173.82,173.79,71.4]
[1748215367905,18.15858733,173.84,173.79,71.4]
[1748215369012,18.15858733,173.83,173.79,71.4]
[1748215369190,1.15061557,173.82,173.79,71.4]
[1748215370404,4.44143278,173.83,173.79,71.4]
[1748215370785,1.15056827,173.83,173.79,71.4]
[1748215372510,18.15858733,173.84,173.79,71.4]
[1748215372812,5.24459836,173.86,173.8,18.79181043]
[1748215373010,23.40318569,173.86,173.8,18.79181043]
[1748215373177,2.14259922,173.85,173.8,18.79181043]
[1748215373373,3.29203764,173.84,173.8,18.79181043]
[1748215373582,3.29203764,173.84,173.79,73.70160253]
[1748215374020,4.44254219,173.84,173.79,73.70160253]
[1748215375004,22.60112952,173.84,173.79,71.4]
[1748215375308,3.29203764,173.83,173.79,71.4]
[1748215375506,7.24418619,173.83,173.79,36.92]
[1748215375820,7.24418619,173.83,173.8,34.48]
[1748215375997,8.39475842,173.83,173.8,34.48]
[1748215376187,4.44260987,173.83,173.8,34.48]
[1748215376580,3.29203764,173.82,173.8,34.48]
[1748215377414,4.44266438,173.82,173.77,2.3018933]
[1748215377717,3.29203764,173.82,173.78,71.4]
[1748215378086,1.15055979,173.83,173.78,71.4]
[1748215378406,3.95382212,173.82,173.78,71.4]
[1748215379306,22.11240945,173.82,173.78,71.4]
[1748215379509,4.44705244,173.81,173.78,71.4]
[1748215379710,4.44705244,173.81,173.77,71.4]
[1748215380088,22.60563977,173.81,173.77,36.92]
[1748215380796,22.45061875,173.8,173.77,36.92]
[1748215381102,3.95602951,173.79,173.77,36.92]
[1748215381510,23.2654453,173.79,173.77,36.92]
[1748215381713,26.56181042,173.79,173.77,36.92]
[1748215381911,22.45061875,173.78,173.73,71.4]
[1748215382290,3.95602951,173.77,173.73,71.4]
[1748215383218,19.30941579,173.79,173.73,71.4]
[1748215383417,2.14600554,173.78,173.73,71.4]
[1748215383712,2.14600554,173.78,173.73,73.7023405]
[1748215384016,3.29491429,173.77,173.73,73.7023405]
[1748215385424,19.30941579,173.79,173.73,73.7023405]
[1748215385932,2.14382504,173.78,173.73,73.7023405]
[1748215386610,19.30941579,173.79,173.73,73.7023405]
[1748215387131,3.95402953,173.78,173.73,73.7023405]
[1748215387931,3.95402953,173.78,173.74,18.79181043]
[1748215388140,4.09424633,173.81,173.74,18.79181043]
[1748215388141,2.14431297,173.8,173.74,18.79181043]
[1748215388326,3.29319894,173.79,173.74,18.79181043]
[1748215388524,3.29319894,173.79,173.75,2.30215827]
[1748215389736,19.30921319,173.82,173.75,2.30215827]
[1748215390032,5.44098015,173.81,173.75,83.80215827]
[1748215390433,5.44098015,173.81,173.75,81.5]
[1748215390616,20.30376752,173.8,173.75,81.5]
[1748215390820,18.15858733,173.79,173.75,81.5]
[1748215391233,22.44885151,173.79,173.75,81.5]
[1748215391438,3.29404437,173.78,173.75,81.5]
[1748215391737,3.29404437,173.78,173.74,34.48]
[1748215391930,4.44497616,173.78,173.74,34.48]
[1748215392342,1.15093179,173.78,173.74,34.48]
[1748215394043,18.15858733,173.76,173.73,36.92]
[1748215395253,2.14497708,173.75,173.73,36.92]
[1748215395628,5.43925209,173.75,173.73,36.92]
[1748215396146,3.29427501,173.75,173.73,36.92]
[1748215396352,3.29427501,173.75,173.73,39.22240535]
[1748215397424,4.09424633,173.78,173.73,39.22240535]
[1748215398541,45.30941395,173.79,173.73,39.22240535]
[1748215398840,2.14426802,173.78,173.73,39.22240535]
[1748215399426,3.29347021,173.77,173.73,39.22240535]
[1748215400525,45.30941395,173.79,173.73,39.22240535]
[1748215400731,4.28830265,173.78,173.73,39.22240535]
[1748215401129,4.28830265,173.78,173.74,18.79181043]
[1748215401343,4.28830265,173.78,173.75,34.48]
[1748215402044,3.29475907,173.8,173.75,34.48]
[1748215402228,21.4533464,173.8,173.75,34.48]
[1748215402434,19.30933571,173.8,173.75,34.48]
[1748215403022,2.14421263,173.79,173.75,34.48]
[1748215403522,3.29358863,173.78,173.75,34.48]
[1748215404443,3.29358863,173.78,173.75,36.78214329]
[1748215404945,3.29358863,173.78,173.75,118.28214329]
[1748215405132,2.14436707,173.8,173.75,118.28214329]
[1748215405831,3.94914309,173.79,173.75,118.28214329]
[1748215407730,1.15075041,173.8,173.75,118.28214329]
[1748215408536,18.15858733,173.79,173.75,115.98]
[1748215408923,21.4533403,173.79,173.75,115.98]
[1748215409123,2.14516231,173.78,173.75,115.98]
[1748215410145,3.29475297,173.77,173.75,115.98]
[1748215410948,3.29475297,173.77,173.75,34.48]
[1748215411124,3.29475297,173.76,173.75,34.48]
[1748215412043,3.29475297,173.76,173.73,137.21181043]
[1748215412253,3.29475297,173.76,173.74,34.48]
[1748215412427,1.15099476,173.77,173.74,34.48]
[1748215413036,19.30947871,173.78,173.74,34.48]
[1748215413333,2.14576357,173.77,173.74,34.48]
[1748215413535,5.44160128,173.77,173.74,34.48]
[1748215414026,3.29583771,173.77,173.74,34.48]
[1748215414351,3.29583771,173.76,173.74,34.48]
[1748215415629,1.15089138,173.78,173.74,34.48]
[1748215416029,3.9516637,173.77,173.74,34.48]
[1748215417253,1.15089138,173.78,173.74,34.48]
[1748215417459,6.43972303,173.77,173.74,34.48]
[1748215417634,6.43972303,173.77,173.74,36.78228475]
[1748215418274,4.29314853,173.77,173.74,36.78228475]
[1748215418458,1.15088245,173.78,173.74,34.48]
[1748215418653,1.15088245,173.78,173.75,36.9]
[1748215418861,1.15084063,173.79,173.75,36.9]
[1748215419044,3.95376287,173.77,173.75,36.9]
[1748215419753,1.15084063,173.79,173.75,36.9]
[1748215420062,6.44372202,173.78,173.75,36.9]
[1748215420441,6.44372202,173.78,173.75,39.20213665]
[1748215420647,6.44372202,173.78,173.75,36.9]
[1748215420846,3.29999153,173.77,173.75,36.9]
[1748215422362,23.40360122,173.8,173.75,36.9]
[1748215422743,3.9580593,173.79,173.75,36.9]
[1748215423073,2.14947324,173.78,173.75,36.9]
[1748215423448,4.30013877,173.77,173.75,36.9]
[1748215423841,3.30248287,173.76,173.75,36.9]
[1748215424768,3.30248287,173.76,173.75,39.20215827]
[1748215424974,7.26288326,173.76,173.75,39.20215827]
[1748215426264,5.24501389,173.8,173.75,39.20215827]
[1748215426466,4.30166074,173.79,173.75,39.20215827]
[1748215426677,6.45243095,173.79,173.75,39.20215827]
[1748215427276,4.30166074,173.78,173.75,36.9]
[1748215427761,4.30166074,173.78,173.75,39.20213357]
[1748215427969,3.30323492,173.77,173.76,18.79181043]
[1748215428659,3.30323492,173.77,173.76,21.09383621]
[1748215429236,5.75604633,173.83,173.76,21.09383621]
[1748215429440,4.30038082,173.82,173.76,102.59383621]
[1748215429662,2.14962217,173.81,173.76,102.59383621]
[1748215430541,3.96178482,173.82,173.76,108.34890066]
[1748215430770,4.09424633,173.83,173.76,134.34890066]
[1748215431273,2.14880265,173.82,173.76,134.34890066]
[1748215432167,23.40325403,173.85,173.76,134.34890066]
[1748215432665,4.09424633,173.85,173.76,134.34890066]
[1748215432847,2.14757226,173.84,173.76,134.34890066]
[1748215433047,3.95782439,173.83,173.76,134.34890066]
[1748215433288,11.5515507,173.83,173.76,134.34890066]
[1748215433969,7.59372631,173.83,173.76,134.34890066]
[1748215434170,3.29856502,173.83,173.76,134.34890066]
[1748215434764,3.29856502,173.82,173.79,0.14216157]
[1748215434964,3.29856502,173.82,173.81,18.79181043]
[1748215435146,3.29856502,173.82,173.81,55.65181043]
[1748215435871,3.95523845,173.85,173.81,55.65181043]
[1748215436071,4.09424633,173.86,173.81,55.65181043]
[1748215436270,4.09424633,173.86,173.81,137.15181043]
[1748215436643,4.09424633,173.86,173.83,18.79181043]
[1748215436841,4.09424633,173.86,173.85,18.79181043]
[1748215437865,5.43635489,173.9,173.85,18.79181043]
[1748215438074,5.43635489,173.9,173.85,100.29181043]
[1748215438248,3.29260089,173.9,173.85,100.29181043]
[1748215438450,3.29260089,173.9,173.85,100.86675568]
[1748215438858,29.92056705,173.94,173.86,2.30070171]
[1748215439060,29.92056705,173.94,173.88,18.79181043]
[1748215440252,25.82632072,173.94,173.88,18.79181043]
[1748215441177,18.15858733,173.92,173.87,36.86]
[1748215443080,18.15858733,173.89,173.87,36.86]
[1748215443374,18.15858733,173.88,173.82,36.84]
[1748215443574,18.15858733,173.85,173.82,36.84]
[1748215444980,18.15858733,173.86,173.82,36.84]
[1748215445170,1.15041702,173.85,173.82,36.84]
[1748215447467,18.15858733,173.85,173.82,36.84]
[1748215448686,18.15858733,173.86,173.82,36.84]
[1748215450795,1.15041702,173.85,173.82,36.84]
[1748215451275,19.30900435,173.85,173.82,36.84]
[1748215451985,1.15028469,173.87,173.82,36.84]
[1748215452191,18.15858733,173.85,173.82,36.84]
[1748215452391,18.15858733,173.86,173.82,36.84]
[1748215452566,19.30887202,173.87,173.82,36.84]
[1748215453593,1.15028469,173.87,173.82,36.84]
[1748215457293,1.589,173.89,173.83,18.79181043]
[1748215457596,18.15858733,173.91,173.83,100.8668815]
[1748215458996,18.15858733,173.9,173.85,18.79181043]
[1748215459801,1.15008625,173.9,173.85,21.09263863]
[1748215460172,3.28193304,173.91,173.86,34.46]
[1748215460370,27.53275214,173.92,173.86,34.46]
[1748215460691,27.53275214,173.92,173.87,18.79181043]
[1748215460991,7.23726036,173.92,173.87,18.79181043]
[1748215461189,25.39584769,173.92,173.87,18.79181043]
[1748215461404,18.15858733,173.92,173.87,18.79181043]
[1748215461692,19.30854421,173.92,173.87,18.79181043]
[1748215462276,19.30854421,173.92,173.87,21.09235963]
[1748215463705,1.14988788,173.93,173.87,21.09235963]
[1748215463875,18.15858733,173.93,173.87,102.59235963]
[1748215465490,19.30847764,173.93,173.87,102.59235963]
[1748215466076,4.92313304,173.94,173.89,18.79181043]
[1748215466271,3.28193304,173.94,173.89,18.79181043]
[1748215466694,21.44052037,173.94,173.89,18.79181043]
[1748215466901,18.15858733,173.94,173.89,18.79181043]
[1748215467203,19.30834361,173.95,173.9,2.30017251]
[1748215469877,18.15858733,173.91,173.88,36.8]
[1748215470111,18.15858733,173.89,173.83,36.8]
[1748215470323,18.15858733,173.86,173.81,71.40216157]
[1748215470618,6.0066,173.91,173.82,18.64964886]
[1748215470833,18.15858733,173.87,173.83,0.14216157]
[1748215471401,6.0066,173.91,173.83,0.14216157]
[1748215471578,18.15858733,173.88,173.83,0.14216157]
[1748215471778,1.15015239,173.89,173.84,18.64964886]
[1748215471974,19.30873972,173.89,173.84,18.64964886]
[1748215472685,18.15858733,173.89,173.85,0.14216157]
[1748215473310,19.30868579,173.9,173.85,0.14216157]
[1748215473806,21.4473409,173.89,173.83,18.79181043]
[1748215474305,25.41009211,173.89,173.83,18.79181043]
[1748215475008,25.41009211,173.89,173.84,2.3009664]
[1748215475210,19.30876186,173.89,173.84,2.3009664]
[1748215476002,1.15017453,173.89,173.84,2.3009664]
[1748215476301,19.30876186,173.89,173.84,2.3009664]
[1748215478126,1.15002012,173.91,173.85,2.30077361]
[1748215478413,3.96455899,173.9,173.86,0.14216157]
[1748215479209,22.12314632,173.9,173.86,0.14216157]
[1748215479510,18.15858733,173.9,173.86,0.14216157]
[1748215481307,18.15858733,173.9,173.86,2.44283996]
[1748215481591,5.72264633,173.93,173.87,18.64964886]
[1748215481592,19.30855682,173.92,173.87,18.64964886]
[1748215481790,4.2859541,173.91,173.87,55.44964886]
[1748215482010,3.96752475,173.9,173.87,55.44964886]
[1748215482711,19.30855682,173.92,173.87,57.75021573]
[1748215482894,18.15858733,173.92,173.87,57.75021573]
[1748215483093,1.6284,173.93,173.87,57.75021573]
[1748215483416,3.2920179,173.91,173.87,57.75021573]
[1748215484197,21.45060523,173.91,173.87,55.44964886]
[1748215484508,3.96848353,173.9,173.87,55.44964886]
[1748215485095,7.26050143,173.9,173.87,55.44964886]
[1748215485617,3.2920179,173.9,173.87,55.44964886]
[1748215486317,19.30862865,173.91,173.87,55.44964886]
[1748215487017,3.9663405,173.9,173.87,55.44964886]
[1748215487829,3.9663405,173.9,173.87,57.75018359]
[1748215488122,19.30856467,173.92,173.87,57.75018359]
[1748215488306,18.15858733,173.91,173.87,55.44964886]
[1748215488925,3.29268132,173.9,173.87,55.44964886]
[1748215490425,19.30864051,173.91,173.87,55.44964886]
[1748215490808,6.11191304,173.9,173.87,55.44964886]
[1748215491716,3.96786314,173.9,173.87,55.44964886]
[1748215491925,19.30864051,173.91,173.87,55.44964886]
[1748215492129,1.15005318,173.91,173.87,55.44964886]
[1748215492519,3.29431746,173.9,173.87,55.44964886]
[1748215493628,1.15005318,173.91,173.87,55.44964886]
[1748215493799,3.96975584,173.9,173.87,55.44964886]
[1748215495422,3.96975584,173.89,173.87,55.44964886]
[1748215495599,7.26517509,173.89,173.87,55.44964886]
[1748215495899,3.29541925,173.89,173.87,55.44964886]
[1748215497119,19.30856659,173.92,173.87,55.44964886]
[1748215497634,2.14704506,173.91,173.88,0.14216157]
[1748215497801,3.97304683,173.9,173.88,0.14216157]
[1748215498403,3.97304683,173.9,173.89,26.0]
[1748215498633,4.09424633,173.93,173.89,44.79181043]
[1748215498936,4.09424633,173.95,173.91,18.79181043]
[1748215499433,3.97958991,173.94,173.91,21.09178873]
[1748215499600,4.29374459,173.93,173.91,21.09178873]
[1748215499800,6.44060494,173.93,173.91,21.09178873]
[1748215500327,2.14686035,173.93,173.91,21.09178873]
[1748215500707,3.97958991,173.92,173.91,21.09178873]
[1748215501322,3.97958991,173.92,173.91,21.66660055]
[1748215501629,3.97958991,173.92,173.91,129.16660055]
[1748215501927,3.97958991,173.92,173.91,128.59178873]
[1748215502140,2.14690125,173.96,173.91,134.34188935]
[1748215502500,4.09424633,173.97,173.91,134.34188935]
[1748215503226,4.09424633,173.97,173.94,0.14216157]
[1748215503414,4.09424633,173.97,173.96,0.14216157]
[1748215503721,4.09424633,173.97,173.96,18.79181043]
[1748215504127,1.5175,174.01,173.96,18.79181043]
[1748215504316,4.28819766,173.99,173.96,100.29181043]
[1748215504712,3.98529861,173.98,173.96,102.59109576]
[1748215505811,4.28819766,174.01,173.96,102.59109576]
[1748215506011,4.09424633,174.02,173.96,102.59109576]
[1748215506922,1.14924653,174.03,173.96,102.59109576]
[1748215507629,1.14918354,174.04,173.96,102.59109576]
[1748215508015,3.97693005,174.03,173.96,102.59109576]
[1748215508220,3.97693005,174.03,173.96,103.16567547]
[1748215509134,4.09424633,174.06,173.98,18.79181043]
[1748215509315,23.40189268,174.06,173.98,100.86630309]
[1748215509519,18.15858733,174.05,173.98,100.29181043]
[1748215510510,18.15858733,174.05,173.99,34.44]
[1748215511146,1.14916111,174.04,173.99,34.44]
[1748215513140,1.14916111,174.04,174.0,0.14216157]
[1748215513655,3.27947035,174.07,174.0,18.79181043]
[1748215513840,21.43805768,174.07,174.01,36.74]
[1748215514652,3.27947035,174.07,174.04,0.14216157]
[1748215514835,4.09424633,174.1,174.05,34.44]
[1748215514836,1.14883275,174.09,174.05,34.44]
[1748215516946,1.6646,174.1,174.06,0.14216157]
[1748215517116,1.14874306,174.11,174.07,36.74]
[1748215517545,4.41861252,174.12,174.07,36.74]
[1748215517739,1.1485846,174.13,174.08,0.14216157]
[1748215518424,2.78690985,174.14,174.08,18.79181043]
[1748215518813,2.78690985,174.14,174.07,36.74]
[1748215518814,18.15858733,174.13,174.07,36.74]
[1748215519035,18.15858733,174.12,174.07,36.74]
[1748215519239,18.15858733,174.13,174.07,36.74]
[1748215519429,18.15858733,174.13,174.07,39.03788745]
[1748215519818,2.78690985,174.14,174.08,0.14216157]
[1748215520026,20.94549718,174.14,174.08,0.14216157]
[1748215520724,20.94549718,174.14,174.08,18.79181043]
[1748215521743,2.78690985,174.14,174.08,18.79181043]
[1748215522125,2.78690985,174.14,174.08,21.0896033]
[1748215522530,19.30702258,174.15,174.08,21.0896033]
[1748215522850,19.30702258,174.15,174.08,102.5896033]
[1748215523546,1.14843525,174.15,174.08,102.5896033]
[1748215523920,19.30702258,174.15,174.08,102.5896033]
[1748215524546,19.30702258,174.15,174.08,100.29181043]
[1748215524752,18.15858733,174.12,174.08,81.64216157]
[1748215525552,4.01952339,174.15,174.08,81.64216157]
[1748215525727,18.15858733,174.14,174.08,2.43994459]
[1748215526145,1.14843525,174.15,174.08,0.14216157]
[1748215526340,1.14843525,174.15,174.08,21.08960375]
[1748215526850,18.15858733,174.15,174.08,21.08960375]
[1748215527843,1.14850087,174.15,174.08,21.08960375]
[1748215528031,19.3070882,174.15,174.08,21.08960375]
[1748215528937,18.15858733,174.16,174.08,21.08960375]
[1748215529842,1.14843525,174.15,174.08,21.08960375]
[1748215530041,18.15858733,174.17,174.08,21.08960375]
[1748215530541,1.14834202,174.17,174.08,26.83408904]
[1748215531461,2.77114959,174.18,174.08,27.40826032]
[1748215531977,20.92973692,174.18,174.08,27.40826032]
[1748215532756,1.14836931,174.16,174.08,26.83408904]
[1748215532954,1.14836931,174.16,174.08,21.08960375]
[1748215534459,1.14836931,174.16,174.08,102.58960375]
[1748215534646,1.14830338,174.17,174.08,102.58960375]
[1748215536145,19.30689071,174.17,174.08,102.58960375]
[1748215537464,1.14843525,174.15,174.11,0.14216157]
[1748215537847,1.14843525,174.15,174.12,36.68]
[1748215539254,19.30702258,174.15,174.12,36.68]
[1748215544170,22.55891283,174.15,174.12,36.68]
[1748215545169,4.4003255,174.15,174.12,36.68]
[1748215545345,1.14843525,174.15,174.12,36.68]
[1748215547051,1.14836931,174.16,174.12,36.68]
[1748215547250,19.30695664,174.16,174.12,36.68]
[1748215547961,3.96449166,174.15,174.12,36.68]
[1748215548477,5.11293241,174.15,174.12,36.68]
[1748215548777,1.14844075,174.15,174.12,36.68]
[1748215549780,1.14836931,174.16,174.12,36.68]
[1748215549983,19.30695664,174.16,174.12,36.68]
[1748215550153,3.27631567,174.14,174.12,36.68]
[1748215551379,19.30695664,174.16,174.12,36.68]
[1748215551879,5.11897895,174.15,174.12,36.68]